bitfinex-derivatives/quotes_SOLF0:USTF0_20260114
["timestamp","ask_amount","ask_price","bid_price","bid_amount"]
[1768364207357,17.34787076,145.66,145.58,14.47221715]
[1768364207556,17.34787076,145.66,145.59,14.47221715]
[1768364207858,17.34787076,145.66,145.55,99.77854973]
[1768364207859,17.34787076,145.64,145.57,14.47221715]
[1768364208254,6.1831,145.63,145.57,14.47221715]
[1768364209751,13.79932103,145.61,145.5,14.47221715]
[1768364209955,13.79932103,145.58,145.5,14.47221715]
[1768364210160,17.34787076,145.58,145.5,14.47221715]
[1768364211762,17.34787076,145.58,145.52,14.47221715]
[1768364213165,13.79932103,145.58,145.52,14.47221715]
[1768364213357,16.06709461,145.58,145.52,14.47221715]
[1768364216973,13.79932103,145.58,145.52,20.65991715]
[1768364217167,16.06709461,145.58,145.52,20.65991715]
[1768364218068,6.1849,145.59,145.53,14.47221715]
[1768364218469,8.45267358,145.59,145.53,14.47221715]
[1768364219076,13.79932103,145.63,145.53,14.47221715]
[1768364219375,13.79932103,145.63,145.53,16.73999073]
[1768364219376,2.26777358,145.61,145.53,16.73999073]
[1768364220878,22.25049461,145.63,145.57,14.47221715]
[1768364221075,2.26777358,145.63,145.57,14.47221715]
[1768364221376,16.06709461,145.65,145.57,14.47221715]
[1768364222086,2.26777358,145.65,145.59,14.47221715]
[1768364222264,13.79932103,145.69,145.59,16.73999073]
[1768364222574,2.26777358,145.68,145.59,16.73999073]
[1768364223177,8.44877358,145.68,145.61,6.1838]
[1768364223368,8.44877358,145.68,145.61,20.65601715]
[1768364223976,22.24809461,145.68,145.61,20.65601715]
[1768364224981,19.98032103,145.68,145.61,20.65601715]
[1768364225178,2.26777358,145.67,145.61,20.65601715]
[1768364225474,2.26777358,145.67,145.59,22.85224342]
[1768364225475,24.07180445,145.67,145.59,22.85224342]
[1768364225675,2.26777358,145.65,145.59,20.58446984]
[1768364226170,6.1809,145.69,145.61,14.39986984]
[1768364226378,2.26777358,145.68,145.61,14.39986984]
[1768364227465,15.62253087,145.67,145.61,14.39986984]
[1768364231377,17.89030445,145.67,145.61,14.39986984]
[1768364233079,17.89030445,145.67,145.58,2.26777358]
[1768364233080,6.1824,145.65,145.56,6.1857]
[1768364233280,96.1478,145.69,79.47,95.74509993]
[1768364233281,15.62253087,145.61,145.52,14.39986984]
[1768364233471,2.26777358,145.59,145.52,14.39986984]
[1768364234586,15.62253087,145.61,145.52,14.39986984]
[1768364234784,2.26777358,145.6,145.52,14.39986984]
[1768364235785,2.26777358,145.6,145.52,20.58746984]
[1768364236174,2.26777358,145.6,145.53,14.39986984]
[1768364236882,21.80663087,145.61,145.53,14.39986984]
[1768364237087,2.26777358,145.6,145.53,14.39986984]
[1768364239484,2.26777358,145.6,145.53,16.66764342]
[1768364241390,2.26777358,145.6,145.54,15.29873211]
[1768364245193,8.45227358,145.6,145.54,15.29873211]
[1768364247681,23.45442544,145.6,145.54,15.29873211]
[1768364248594,6.1845,145.6,145.54,15.29873211]
[1768364254195,2.26777358,145.61,145.54,21.48563211]
[1768364254395,2.26777358,145.63,145.54,17.56650569]
[1768364254698,2.26777358,145.63,145.57,15.29873211]
[1768364254899,15.00215186,145.64,145.57,15.29873211]
[1768364255101,6.1831,145.63,145.57,15.29873211]
[1768364256597,6.1824,145.65,145.58,16.26030624]
[1768364257790,6.1824,145.65,145.59,16.26030624]
[1768364265306,8.45017358,145.65,145.59,16.26030624]
[1768364268701,6.1824,145.65,145.59,16.26030624]
[1768364273618,18.42125685,145.66,145.6,16.26030624]
[1768364273619,22.33548327,145.66,145.6,16.26030624]
[1768364277218,6.1814,145.67,145.61,16.26030624]
[1768364277417,3.53904606,145.7,145.61,16.26030624]
[1768364277614,19.69252933,145.71,145.61,16.26030624]
[1768364278920,6.181,145.68,145.62,16.26030624]
[1768364288130,22.87557065,145.68,145.62,16.26030624]
[1768364288334,22.87557065,145.68,145.61,22.06055391]
[1768364288335,16.69457065,145.67,145.61,22.06055391]
[1768364288534,16.69457065,145.67,145.62,15.87665391]
[1768364288736,6.181,145.68,145.62,15.87665391]
[1768364298343,22.00626992,145.68,145.62,15.87665391]
[1768364301242,15.82526992,145.7,145.63,15.91538247]
[1768364302743,6.1806,145.69,145.63,22.09838247]
[1768364303043,6.1806,145.69,145.64,15.91538247]
[1768364303244,253.0290017,145.72,145.64,15.91538247]
[1768364303442,15.82526992,145.71,145.64,15.91538247]
[1768364304345,15.82526992,145.71,145.65,15.91538247]
[1768364305946,22.00496992,145.71,145.65,15.91538247]
[1768364313059,6.1802,145.7,145.65,15.91538247]
[1768364313357,22.00546992,145.7,145.63,15.91538247]
[1768364314561,6.1807,145.69,145.63,15.91538247]
[1768364316857,22.61104965,145.68,145.62,6.1833]
[1768364317059,16.43004965,145.68,145.61,22.6783369]
[1768364317258,16.43004965,145.68,145.61,16.4944369]
[1768364318866,6.1814,145.67,145.61,16.4944369]
[1768364320263,6.1814,145.67,145.61,22.6783369]
[1768364320759,22.61094965,145.68,145.61,22.6783369]
[1768364321772,22.61154965,145.67,145.61,16.4944369]
[1768364337304,22.61154965,145.67,145.61,18.75875062]
[1768364339699,16.43004965,145.67,145.62,16.4944369]
[1768364339901,22.61104965,145.68,145.62,16.4944369]
[1768364340906,22.61104965,145.68,145.63,16.4944369]
[1768364341096,6.181,145.68,145.63,16.4944369]
[1768364341601,22.61104965,145.68,145.63,16.4944369]
[1768364349802,22.97075568,145.67,145.61,25.5836041]
[1768364351711,22.97075568,145.67,145.61,17.13539038]
[1768364351907,22.97115568,145.66,145.61,17.13539038]
[1768364354512,16.78935568,145.66,145.61,17.13539038]
[1768364354811,16.78935568,145.66,145.61,19.3997041]
[1768364357112,22.97115568,145.66,145.61,19.3997041]
[1768364357311,22.97115568,145.66,145.61,2.26431372]
[1768364360318,6.1822,145.65,145.61,2.26431372]
[1768364360817,22.58908641,145.65,145.61,2.26431372]
[1768364361510,22.58908641,145.65,145.6,98.29539038]
[1768364362115,22.58958641,145.64,145.58,22.06396945]
[1768364363720,16.40688641,145.63,145.58,6.1848]
[1768364364625,16.40688641,145.63,145.58,22.06396945]
[1768364365022,6.1827,145.64,145.58,22.06396945]
[1768364365412,22.58918641,145.65,145.59,15.87916945]
[1768364365926,6.1818,145.66,145.6,15.87916945]
[1768364366419,22.58868641,145.66,145.6,15.87916945]
[1768364366626,22.58918641,145.65,145.6,15.87916945]
[1768364366823,22.58918641,145.65,145.58,18.14348317]
[1768364367825,22.58918641,145.65,145.58,24.32868317]
[1768364368827,22.58918641,145.65,145.58,6.1852]
[1768364369024,22.58918641,145.65,145.59,15.87916945]
[1768364369325,22.58958641,145.64,145.57,97.03916945]
[1768364369525,22.58958641,145.64,145.58,15.87916945]
[1768364372329,16.40688641,145.64,145.58,24.32868317]
[1768364373224,16.40688641,145.64,145.59,15.87916945]
[1768364373430,18.67120013,145.66,145.58,8.44951372]
[1768364373625,18.67120013,145.66,145.58,24.32868317]
[1768364373827,22.58918641,145.65,145.58,24.32868317]
[1768364374327,22.58918641,145.65,145.59,15.87916945]
[1768364395947,22.58918641,145.65,145.59,22.06386945]
[1768364400356,22.58918641,145.65,145.59,15.87916945]
[1768364400659,16.59010852,145.62,145.57,81.16]
[1768364401245,16.59010852,145.61,145.55,15.99454345]
[1768364402357,16.59010852,145.61,145.55,22.18094345]
[1768364403258,22.77400852,145.61,145.55,15.99454345]
[1768364403459,16.59010852,145.6,145.55,15.99454345]
[1768364406963,16.55962157,145.59,145.53,97.79402108]
[1768364407463,16.55962157,145.59,145.54,16.63402108]
[1768364408962,16.55962157,145.59,145.54,6.1869]
[1768364409157,16.55962157,145.59,145.53,97.79402108]
[1768364414859,16.55962157,145.58,145.53,81.16]
[1768364415163,16.55962157,145.58,145.51,16.63402108]
[1768364416764,22.74492157,145.58,145.51,16.63402108]
[1768364416963,16.55962157,145.57,145.51,16.63402108]
[1768364422770,22.74532157,145.57,145.51,16.63402108]
[1768364423065,16.56171488,145.56,145.51,16.63402108]
[1768364423459,16.56171488,145.56,145.5,87.3683]
[1768364424168,16.56171488,145.56,145.5,103.36108778]
[1768364426171,16.56171488,145.56,145.51,15.99278778]
[1768364426879,6.1857,145.57,145.51,15.99278778]
[1768364428171,16.56171488,145.58,145.52,15.99278778]
[1768364429479,16.56171488,145.57,145.51,6.1879]
[1768364433178,16.56171488,145.57,145.52,15.99278778]
[1768364433582,16.56171488,145.57,145.51,6.1879]
[1768364437180,16.56171488,145.57,145.51,21.96759566]
[1768364438785,16.56171488,145.57,145.51,15.77969566]
[1768364439889,16.56171488,145.57,145.51,21.96779566]
[1768364440190,6.1852,145.58,145.52,15.77969566]
[1768364440687,23.08775015,145.58,145.52,15.77969566]
[1768364448692,6.1852,145.58,145.52,15.77969566]
[1768364450493,23.08775015,145.58,145.52,15.77969566]
[1768364450796,16.90255015,145.57,145.51,6.1881]
[1768364451093,16.90255015,145.57,145.51,21.96779566]
[1768364454689,16.90255015,145.57,145.52,15.77969566]
[1768364458701,16.90255015,145.57,145.52,21.96739566]
[1768364458902,6.1852,145.58,145.52,21.96739566]
[1768364459194,16.90255015,145.59,145.53,15.77969566]
[1768364459895,16.90255015,145.59,145.53,21.96689566]
[1768364460099,6.1848,145.6,145.54,15.77969566]
[1768364460289,16.90255015,145.61,145.55,2.26730449]
[1768364460491,233.09811589,145.62,145.57,15.77969566]
[1768364461498,16.90255015,145.63,145.57,18.04700015]
[1768364467101,6.1828,145.64,145.57,18.04700015]
[1768364467406,23.55787615,145.64,145.57,18.04700015]
[1768364469099,17.37507615,145.63,145.57,18.04700015]
[1768364471607,17.37507615,145.63,145.57,24.23260015]
[1768364471800,17.37507615,145.63,145.57,21.96529566]
[1768364472100,17.37507615,145.63,145.57,24.23260015]
[1768364472307,2.26730449,145.66,145.58,16.14143407]
[1768364472502,239.55589381,145.67,145.6,16.14143407]
[1768364472909,6.1822,145.65,145.6,16.14143407]
[1768364473303,241.8231983,145.67,145.58,18.40873856]
[1768364473798,6.1827,145.64,145.58,18.40873856]
[1768364474198,12.10071123,145.64,145.58,18.40873856]
[1768364474601,12.10071123,145.64,145.58,16.14143407]
[1768364476098,12.10071123,145.64,145.58,18.40873856]
[1768364477307,12.10071123,145.64,145.58,16.14143407]
[1768364477504,6.04042496,145.62,145.57,2.26730449]
[1768364477807,6.04042496,145.62,145.55,2.26730449]
[1768364478200,6.12251277,145.6,145.54,19.12229769]
[1768364479007,6.12251277,145.6,145.55,2.26730449]
[1768364479808,6.12251277,145.6,145.54,16.8549932]
[1768364480013,6.12251277,145.6,145.55,2.26730449]
[1768364480211,6.12251277,145.6,145.54,16.8549932]
[1768364480411,6.12251277,145.6,145.54,19.12229769]
[1768364481317,6.12251277,145.6,145.55,2.26730449]
[1768364483115,6.1834,145.63,145.57,19.12229769]
[1768364485821,6.31246273,145.64,145.57,19.12229769]
[1768364486910,12.49516273,145.64,145.58,16.8549932]
[1768364488522,12.49516273,145.64,145.58,23.0401932]
[1768364490018,12.49516273,145.64,145.59,16.8549932]
[1768364501931,6.96758024,145.63,145.57,17.42991042]
[1768364503035,6.1836,145.62,145.57,17.42991042]
[1768364503836,6.184,145.61,145.55,19.69721491]
[1768364504031,7.02541495,145.6,145.53,19.69721491]
[1768364504343,9.29271944,145.6,145.53,17.42991042]
[1768364504929,6.1848,145.59,145.53,17.42991042]
[1768364505637,9.29271944,145.6,145.54,17.42991042]
[1768364505638,2.26730449,145.6,145.54,17.42991042]
[1768364506840,8.45170449,145.6,145.54,17.42991042]
[1768364507439,6.1844,145.6,145.54,17.42991042]
[1768364508340,7.05386754,145.62,145.55,17.42991042]
[1768364509936,6.184,145.61,145.55,17.42991042]
[1768364516249,9.32117203,145.62,145.55,17.42991042]
[1768364517058,7.37138833,145.61,145.55,17.42991042]
[1768364517569,7.37138833,145.61,145.55,23.61631042]
[1768364521060,7.37138833,145.61,145.56,17.42991042]
[1768364522062,7.4912983,145.6,145.55,6.1864]
[1768364522360,7.4912983,145.6,145.55,23.61631042]
[1768364522956,6.184,145.61,145.55,23.61631042]
[1768364524361,7.51436904,145.62,145.57,17.42991042]
[1768364524561,3.54144049,145.63,145.57,17.42991042]
[1768364525163,11.14097587,145.63,145.57,17.42991042]
[1768364525760,17.32407587,145.63,145.57,17.42991042]
[1768364526560,7.59953538,145.63,145.57,17.42991042]
[1768364526856,11.16275336,145.65,145.57,17.42991042]
[1768364527564,3.54144049,145.65,145.57,17.42991042]
[1768364527766,81.18,145.66,145.54,96.2354]
[1768364527767,6.182,145.66,145.6,17.28712537]
[1768364528266,13.84599135,145.66,145.6,17.28712537]
[1768364528767,243.0973343,145.67,145.6,17.28712537]
[1768364528963,239.55589381,145.67,145.6,17.28712537]
[1768364529858,239.55589381,145.67,145.58,177.3896]
[1768364529859,239.55589381,145.67,145.62,17.28712537]
[1768364531868,239.55589381,145.67,145.62,23.47052537]
[1768364533870,239.55589381,145.67,145.63,23.47012537]
[1768364535571,18.14440003,145.72,145.65,17.28712537]
[1768364536667,18.14440003,145.72,145.63,81.16]
[1768364536668,18.14440003,145.72,145.66,23.46882537]
[1768364537365,18.14440003,145.73,145.67,17.28712537]
[1768364540170,18.14440003,145.73,145.67,23.46822537]
[1768364542780,21.68584052,145.73,145.65,23.79192203]
[1768364543075,21.68584052,145.73,145.66,17.61002203]
[1768364543774,21.68584052,145.73,145.66,23.79172203]
[1768364544476,17.59949481,145.72,145.66,17.61002203]
[1768364544881,17.59949481,145.72,145.65,6.1822]
[1768364545072,17.59949481,145.71,145.64,17.61002203]
[1768364545373,21.1409353,145.71,145.64,17.61002203]
[1768364545783,17.59949481,145.7,145.64,17.61002203]
[1768364546463,17.59949481,145.7,145.64,23.79262203]
[1768364546663,17.59949481,145.7,145.65,17.61002203]
[1768364547371,252.40740247,145.76,145.65,21.15146252]
[1768364547575,252.40740247,145.76,145.66,17.61002203]
[1768364547778,252.40740247,145.76,145.68,17.61002203]
[1768364548874,252.40740247,145.76,145.7,17.61002203]
[1768364549267,17.59949481,145.78,145.7,17.61002203]
[1768364550978,17.59949481,145.78,145.7,23.79002203]
[1768364551173,21.1409353,145.78,145.7,17.61002203]
[1768364551580,17.59949481,145.77,145.7,17.61002203]
[1768364553781,17.59949481,145.77,145.7,23.78992203]
[1768364555482,24.73655232,145.82,145.74,24.42270814]
[1768364555692,18.56115232,145.81,145.74,18.24450814]
[1768364556079,24.73675232,145.81,145.74,18.24450814]
[1768364556577,18.56115232,145.81,145.74,18.24450814]
[1768364556980,18.56115232,145.81,145.74,24.42280814]
[1768364558392,22.10259281,145.81,145.74,18.24450814]
[1768364559792,18.56115232,145.81,145.74,18.24450814]
[1768364564991,18.56115232,145.81,145.73,6.1787]
[1768364565190,18.56115232,145.81,145.73,24.42320814]
[1768364566684,18.56115232,145.8,145.73,24.42320814]
[1768364568285,22.10259281,145.79,145.71,24.42380814]
[1768364569080,24.73795232,145.78,145.71,24.42380814]
[1768364569985,18.56115232,145.78,145.72,24.42350814]
[1768364573092,18.56115232,145.77,145.7,18.24450814]
[1768364574891,18.56115232,145.77,145.71,6.1796]
[1768364577095,18.56115232,145.77,145.71,24.42410814]
[1768364579597,18.56115232,145.77,145.68,18.24450814]
[1768364579894,22.10259281,145.76,145.68,18.24450814]
[1768364580088,18.56115232,145.75,145.69,18.24450814]
[1768364580396,103.18259281,145.77,145.69,18.24450814]
[1768364580592,22.10259281,145.77,145.69,18.24450814]
[1768364580797,22.10259281,145.77,145.67,81.1]
[1768364580798,18.56115232,145.77,145.7,24.42450814]
[1768364580997,18.56115232,145.77,145.71,18.24450814]
[1768364581190,18.56115232,145.77,145.71,24.42410814]
[1768364583099,18.56115232,145.77,145.71,18.24450814]
[1768364583300,20.8226016,145.77,145.71,18.24450814]
[1768364583491,26.9998016,145.77,145.71,18.24450814]
[1768364584799,20.8226016,145.77,145.71,24.42410814]
[1768364590908,19.8385461,145.74,145.68,19.00191437]
[1768364591903,19.8385461,145.74,145.69,6.1805]
[1768364592107,19.8385461,145.74,145.68,19.00191437]
[1768364593807,19.8385461,145.74,145.68,25.18281437]
[1768364594401,19.8385461,145.74,145.67,81.1]
[1768364594608,19.8385461,145.72,145.66,25.18341437]
[1768364594806,19.8385461,145.77,145.67,19.00191437]
[1768364595101,22.09999538,145.75,145.67,19.00191437]
[1768364596010,22.09999538,145.75,145.67,25.18321437]
[1768364596206,22.09999538,145.75,145.68,19.00191437]
[1768364597807,22.09999538,145.75,145.68,25.18281437]
[1768364598207,6.1771,145.78,145.71,19.05608194]
[1768364598410,21.67752735,145.8,145.72,19.05608194]
[1768364598710,19.41607807,145.8,145.72,19.05608194]
[1768364599906,25.59227807,145.8,145.72,25.23528194]
[1768364601911,19.41607807,145.79,145.72,25.23528194]
[1768364607414,21.67752735,145.79,145.72,25.23528194]
[1768364607615,81.1,145.82,145.66,19.05608194]
[1768364607616,6.1793,145.72,145.66,19.05608194]
[1768364607812,2.26144928,145.72,145.66,19.05608194]
[1768364608016,81.1,145.73,145.63,19.05608194]
[1768364608313,96.0795,145.79,145.67,19.05608194]
[1768364608508,2.26144928,145.75,145.67,19.05608194]
[1768364608816,2.26144928,145.76,145.67,19.05608194]
[1768364609718,2.26144928,145.74,145.67,19.05608194]
[1768364610014,2.26144928,145.74,145.67,25.23728194]
[1768364611212,2.26144928,145.72,145.65,19.05608194]
[1768364611416,2.26144928,145.7,145.65,19.05608194]
[1768364611714,2.26144928,145.7,145.63,19.05608194]
[1768364614618,2.26144928,145.7,145.64,19.05608194]
[1768364617024,2.26144928,145.71,145.64,19.05608194]
[1768364621329,2.26144928,145.71,145.64,25.23868194]
[1768364621630,2.26144928,145.71,145.65,21.62940565]
[1768364629432,8.44114928,145.71,145.65,21.62940565]
[1768364632443,116.694,145.81,145.7,21.62940565]
[1768364632642,96.064,145.81,145.7,21.62940565]
[1768364632831,81.12,145.8,145.7,21.62940565]
[1768364633138,6.1761,145.8,145.71,21.62940565]
[1768364633342,2.26144928,145.8,145.71,23.89085493]
[1768364633543,83.38144928,145.8,145.71,23.89085493]
[1768364634235,2.26144928,145.8,145.74,21.62940565]
[1768364637246,8.43754928,145.8,145.74,21.62940565]
[1768364637448,2.26144928,145.78,145.72,21.62940565]
[1768364641346,2.26144928,145.76,145.7,21.62940565]
[1768364642045,6.1773,145.77,145.7,21.62940565]
[1768364642250,2.26144928,145.76,145.7,21.62940565]
[1768364642749,2.26144928,145.76,145.63,96.1784]
[1768364642750,6.1781,145.75,145.68,23.89085493]
[1768364642952,83.36144928,145.76,145.68,23.89085493]
[1768364643354,81.1,145.76,145.68,21.62940565]
[1768364643744,81.1,145.76,145.69,21.62940565]
[1768364645754,87.2776,145.76,145.69,21.62940565]
[1768364648850,6.1776,145.76,145.69,21.62940565]
[1768364649052,81.1,145.75,145.69,21.62940565]
[1768364649357,96.0728,145.8,145.69,25.16405981]
[1768364649550,96.0596,145.82,145.72,24.18677987]
[1768364649755,81.1,145.8,145.72,24.18677987]
[1768364650258,87.2766,145.79,145.72,24.18677987]
[1768364652562,6.1766,145.79,145.72,24.18677987]
[1768364652762,81.1,145.78,145.72,24.18677987]
[1768364657567,87.2768,145.78,145.72,24.18677987]
[1768364662270,6.1771,145.77,145.72,24.18677987]
[1768364678081,6.1776,145.76,145.72,24.18677987]
[1768364678280,3.53465416,145.77,145.7,26.94270445]
[1768364678776,6.1785,145.74,145.7,26.94270445]
[1768364682878,3.53465416,145.77,145.7,26.94270445]
[1768364683779,6.178,145.75,145.7,26.94270445]
[1768364690488,87.2777,145.76,145.7,33.12270445]
[1768364695193,81.1,145.76,145.71,33.12230445]
[1768364697386,81.1,145.77,145.71,33.12230445]
[1768364698087,6.1771,145.78,145.71,33.12230445]
[1768364698283,81.1,145.77,145.73,26.94270445]
[1768364702400,6.1776,145.76,145.71,26.94270445]
[1768364705299,2.262348,145.75,145.71,26.94270445]
[1768364705599,2.262348,145.75,145.68,6.1805]
[1768364705806,2.262348,145.75,145.67,26.35526035]
[1768364706799,2.262348,145.75,145.7,26.35526035]
[1768364709600,2.262348,145.74,145.7,26.35526035]
[1768364711410,6.1776,145.76,145.7,26.35526035]
[1768364711616,2.262348,145.74,145.7,26.35526035]
[1768364721432,6.1776,145.76,145.7,26.35526035]
[1768364721637,2.262348,145.75,145.7,26.35526035]
[1768364722534,81.1,145.77,145.7,26.35526035]
[1768364722735,8.439448,145.77,145.7,32.53516035]
[1768364723036,89.539448,145.77,145.7,32.53516035]
[1768364723934,8.439448,145.77,145.7,32.53516035]
[1768364724133,89.539448,145.77,145.7,32.53516035]
[1768364724942,8.439448,145.77,145.7,32.53516035]
[1768364725140,89.539448,145.77,145.7,32.53516035]
[1768364726040,8.439448,145.77,145.7,32.53516035]
[1768364726243,89.539448,145.77,145.7,32.53516035]
[1768364726443,2.262348,145.8,145.72,28.45034197]
[1768364727841,6.1763,145.79,145.72,34.62914197]
[1768364730845,6.1763,145.79,145.73,6.1788]
[1768364731045,6.1763,145.79,145.74,28.45034197]
[1768364731842,6.1759,145.8,145.74,28.45034197]
[1768364732042,2.262348,145.79,145.74,28.45034197]
[1768364732544,2.262348,145.79,145.74,34.62874197]
[1768364738454,87.2759,145.8,145.74,34.62874197]
[1768364738652,2.262348,145.79,145.74,34.62874197]
[1768364739954,8.438648,145.79,145.74,28.45034197]
[1768364745955,6.1763,145.79,145.74,28.45034197]
[1768364746255,2.262348,145.78,145.74,28.45034197]
[1768364746654,6.1763,145.79,145.74,28.45034197]
[1768364746854,2.262348,145.78,145.74,28.45034197]
[1768364748655,6.1763,145.79,145.74,28.45034197]
[1768364748861,2.262348,145.78,145.74,28.45034197]
[1768364751260,8.438648,145.79,145.74,28.45034197]
[1768364751662,89.518648,145.79,145.74,28.45034197]
[1768364751862,83.342348,145.79,145.72,28.16677052]
[1768364752062,8.439648,145.77,145.72,28.16677052]
[1768364754570,6.1773,145.77,145.72,28.16677052]
[1768364754867,8.439648,145.77,145.72,28.16677052]
[1768364759680,6.1777,145.76,145.72,28.16677052]
[1768364761579,8.440048,145.76,145.72,28.16677052]
[1768364765280,6.1777,145.76,145.72,28.16677052]
[1768364777595,3.53409178,145.77,145.69,28.35976016]
[1768364777796,3.53409178,145.75,145.69,28.35976016]
[1768364777989,81.1,145.74,145.69,28.35976016]
[1768364778791,87.2786,145.74,145.69,28.35976016]
[1768364785492,81.1,145.73,145.69,28.35976016]
[1768364785800,6.1786,145.74,145.69,28.35976016]
[1768364786002,81.1,145.73,145.69,28.35976016]
[1768364786299,6.1786,145.74,145.69,28.35976016]
[1768364786806,81.1,145.73,145.69,28.35976016]
[1768364787103,6.1786,145.74,145.69,28.35976016]
[1768364787297,81.1,145.73,145.69,28.35976016]
[1768364787494,6.1786,145.74,145.69,28.35976016]
[1768364787696,81.1,145.73,145.69,28.35976016]
[1768364787900,6.1786,145.74,145.69,28.35976016]
[1768364788109,81.1,145.72,145.69,28.35976016]
[1768364788604,81.1,145.73,145.69,28.35976016]
[1768364789006,6.1786,145.74,145.69,28.35976016]
[1768364789208,81.12,145.73,145.69,28.35976016]
[1768364789400,81.12,145.72,145.69,28.35976016]
[1768364789600,6.1786,145.74,145.69,28.35976016]
[1768364789795,81.12,145.73,145.69,28.35976016]
[1768364789995,81.12,145.72,145.69,28.35976016]
[1768364790505,6.1786,145.74,145.69,28.35976016]
[1768364790704,81.12,145.73,145.69,28.35976016]
[1768364791209,6.1786,145.74,145.69,28.35976016]
[1768364791505,81.12,145.73,145.69,28.35976016]
[1768364795508,6.1786,145.74,145.69,28.35976016]
[1768364795805,81.12,145.73,145.69,28.35976016]
[1768364795993,6.1789,145.73,145.69,28.35976016]
[1768364796198,81.12,145.72,145.69,28.35976016]
[1768364796707,81.12,145.73,145.69,28.35976016]
[1768364796905,3.53409178,145.76,145.69,28.35976016]
[1768364797105,81.12,145.73,145.69,28.35976016]
[1768364810413,87.2988,145.73,145.66,29.55939342]
[1768364810614,81.12,145.73,145.66,29.55939342]
[1768364811811,6.1793,145.72,145.66,29.55939342]
[1768364816117,6.1788,145.74,145.66,35.74119342]
[1768364816415,81.12,145.73,145.66,35.74119342]
[1768364818417,87.2989,145.73,145.66,35.74119342]
[1768364823223,234.4788806,145.75,145.69,6.1803]
[1768364823521,81.12,145.76,145.7,29.55939342]
[1768364824212,81.12,145.76,145.7,35.73939342]
[1768364825907,81.12,145.75,145.7,35.73939342]
[1768364837135,6.1772,145.77,145.7,35.73939342]
[1768364837636,81.1,145.76,145.7,35.73939342]
[1768364837835,81.1,145.75,145.7,35.73939342]
[1768364838331,6.1772,145.77,145.7,35.73939342]
[1768364838634,81.1,145.76,145.7,35.73939342]
[1768364841744,2.26169059,145.77,145.71,29.24993942]
[1768364842047,81.1,145.76,145.71,29.24993942]
[1768364843146,2.26169059,145.73,145.68,6.1807]
[1768364848248,87.2776,145.76,145.69,35.43043942]
[1768364848450,2.26169059,145.74,145.69,35.43043942]
[1768364849354,83.36169059,145.74,145.69,35.43043942]
[1768364856458,2.26169059,145.74,145.69,35.43043942]
[1768364856657,83.36169059,145.74,145.69,35.43043942]
[1768364858149,83.36169059,145.74,145.68,35.21253143]
[1768364861459,81.1,145.73,145.68,35.21253143]
[1768364862155,81.1,145.73,145.69,35.21223143]
[1768364862751,81.1,145.73,145.69,6.1804]
[1768364864051,81.1,145.73,145.69,35.21223143]
[1768364864253,53.09270985,145.73,145.69,35.21223143]
[1768364865164,53.09270985,145.73,145.67,2.26169059]
[1768364865165,55.35440044,145.73,145.64,31.29352202]
[1768364865857,59.27150985,145.73,145.66,6.1818]
[1768364866059,61.53320044,145.73,145.66,6.1818]
[1768364869264,61.53320044,145.73,145.66,35.21363143]
[1768364870565,6.1788,145.73,145.67,35.21323143]
[1768364872161,8.44039059,145.74,145.67,35.21323143]
[1768364872360,89.56039059,145.74,145.67,35.21323143]
[1768364873872,8.43959059,145.76,145.69,29.03183143]
[1768364874166,81.12,145.75,145.69,29.03183143]
[1768364876165,81.12,145.75,145.69,35.21233143]
[1768364885666,87.2981,145.75,145.69,35.21233143]
[1768364885871,6.1781,145.75,145.69,35.21233143]
[1768364899886,6.1784,145.74,145.69,29.03183143]
[1768364928806,81.1,145.77,145.69,29.03183143]
[1768364928807,6.1789,145.73,145.69,29.03183143]
[1768364929203,81.1,145.77,145.69,29.03183143]
[1768364930812,6.1784,145.74,145.69,29.03183143]
[1768364936412,6.1784,145.74,145.68,6.1809]
[1768364936618,6.1784,145.74,145.67,36.81726754]
[1768364936911,3.29894494,145.76,145.67,30.63586754]
[1768364937806,6.1792,145.73,145.67,30.63586754]
[1768364938410,6.1797,145.72,145.67,30.63586754]
[1768364945419,96.1006,145.76,145.65,30.87135895]
[1768364945617,3.29894494,145.75,145.65,30.87135895]
[1768364945818,81.12,145.74,145.65,30.87135895]
[1768364946826,6.1793,145.72,145.65,37.05355895]
[1768364952322,6.1793,145.72,145.67,30.87135895]
[1768364958333,6.1802,145.7,145.64,29.24585121]
[1768364958629,87.3002,145.7,145.64,29.24585121]
[1768364958831,333.66858304,145.74,145.64,29.24585121]
[1768364958832,6.1796,145.72,145.64,29.24585121]
[1768364959029,81.12,145.71,145.64,29.24585121]
[1768364965026,83.23232391,145.71,145.64,29.24585121]
[1768364971034,2.11232391,145.71,145.64,29.24585121]
[1768364973343,8.29202391,145.71,145.64,29.24585121]